[Event "Titled Tuesday Blitz November 2 2021"]
[White "King, Alexander"]
[Black "Boros, Denes"]
[WhiteFideId "2063620"]
[BlackFideId "722340"]
[WhiteElo "2306"]
[BlackElo "2464"]
[Result "1-0"]
[Round "02"]
[TimeControl "180+1"]
[Date "2021.11.02"]
[WhiteClock "0:00:02"]
[BlackClock "0:00:20"]

1. d4 {[%clk 0:03:00]}  a6 {[%clk 0:03:00]} 2. e4 {[%clk 0:03:00]}  e6 {[%clk 0:03:01]} 3. Nf3 {[%clk 0:03:01]}  d5 {[%clk 0:03:01]} 4. exd5 {[%clk 0:02:58]}  exd5 {[%clk 0:03:01]} 5. c4 {[%clk 0:02:57]}  Nf6 {[%clk 0:03:00]} 6. Nc3 {[%clk 0:02:57]}  Bb4 {[%clk 0:03:00]} 7. Bd3 {[%clk 0:02:57]}  O-O {[%clk 0:03:00]} 8. O-O {[%clk 0:02:57]}  dxc4 {[%clk 0:02:58]} 9. Bxc4 {[%clk 0:02:58]}  Nc6 {[%clk 0:02:58]} 10. h3 {[%clk 0:02:56]}  h6 {[%clk 0:02:55]} 11. Re1 {[%clk 0:02:55]}  Bf5 {[%clk 0:02:54]} 12. Bf4 {[%clk 0:02:46]}  b5 {[%clk 0:02:42]} 13. Bb3 {[%clk 0:02:41]}  Na5 {[%clk 0:02:34]} 14. Bc2 {[%clk 0:02:32]}  Bxc3 {[%clk 0:02:31]} 15. bxc3 {[%clk 0:02:30]}  Bxc2 {[%clk 0:02:31]} 16. Qxc2 {[%clk 0:02:31]}  Nd5 {[%clk 0:02:30]} 17. Bg3 {[%clk 0:02:21]}  Nc4 {[%clk 0:02:27]} 18. a4 {[%clk 0:02:16]}  Re8 {[%clk 0:02:17]} 19. axb5 {[%clk 0:02:11]}  Rxe1+ {[%clk 0:02:09]} 20. Rxe1 {[%clk 0:01:56]}  axb5 {[%clk 0:02:10]} 21. Ne5 {[%clk 0:01:55]}  Ra3 {[%clk 0:01:59]} 22. Qf5 {[%clk 0:01:21]}  Nxe5 {[%clk 0:01:45]} 23. Rxe5 {[%clk 0:01:22]}  c6 {[%clk 0:01:33]} 24. Bh4 {[%clk 0:00:32]}  Qb8 {[%clk 0:01:24]} 25. Bg3 {[%clk 0:00:12]}  Rxc3 {[%clk 0:01:02]} 26. Rxd5 {[%clk 0:00:09]}  Rxg3 {[%clk 0:01:01]} 27. Rd7 {[%clk 0:00:06]}  Rg5 {[%clk 0:00:49]} 28. Qxf7+ {[%clk 0:00:06]}  Kh7 {[%clk 0:00:48]} 29. Re7 {[%clk 0:00:05]}  Qd6 {[%clk 0:00:41]} 30. Re8 {[%clk 0:00:03]}  Qd5 {[%clk 0:00:41]} 31. Qxd5 {[%clk 0:00:02]}  Rxd5 {[%clk 0:00:42]} 32. Rc8 {[%clk 0:00:02]}  Rd6 {[%clk 0:00:42]} 33. f3 {[%clk 0:00:01]}  Kg6 {[%clk 0:00:42]} 34. Kf2 {[%clk 0:00:02]}  Kf5 {[%clk 0:00:43]} 35. Ke3 {[%clk 0:00:03]}  g5 {[%clk 0:00:43]} 36. g4+ {[%clk 0:00:03]}  Ke6 {[%clk 0:00:43]} 37. Re8+ {[%clk 0:00:03]}  Kd5 {[%clk 0:00:44]} 38. Re5+ {[%clk 0:00:03]}  Kc4 {[%clk 0:00:44]} 39. Rc5+ {[%clk 0:00:04]}  Kb3 {[%clk 0:00:45]} 40. d5 {[%clk 0:00:04]}  cxd5 {[%clk 0:00:41]} 41. Rxb5+ {[%clk 0:00:04]}  Kc4 {[%clk 0:00:42]} 42. Rb8 {[%clk 0:00:04]}  d4+ {[%clk 0:00:43]} 43. Kd2 {[%clk 0:00:04]}  d3 {[%clk 0:00:41]} 44. Re8 {[%clk 0:00:03]}  Rd4 {[%clk 0:00:38]} 45. Re3 {[%clk 0:00:01]}  Rd5 {[%clk 0:00:35]} 46. Re4+ {[%clk 0:00:02]}  Kc5 {[%clk 0:00:36]} 47. Re3 {[%clk 0:00:02]}  Kd6 {[%clk 0:00:37]} 48. Rxd3 {[%clk 0:00:03]}  Rxd3+ {[%clk 0:00:32]} 49. Kxd3 {[%clk 0:00:03]}  Kd5 {[%clk 0:00:33]} 50. Ke3 {[%clk 0:00:03]}  Ke5 {[%clk 0:00:33]} 51. f4+ {[%clk 0:00:03]}  gxf4+ {[%clk 0:00:33]} 52. Kf3 {[%clk 0:00:04]}  Ke6 {[%clk 0:00:33]} 53. Kxf4 {[%clk 0:00:04]}  Kf6 {[%clk 0:00:34]} 54. h4 {[%clk 0:00:03]}  Ke6 {[%clk 0:00:34]} 55. Ke4 {[%clk 0:00:01]}  Kf6 {[%clk 0:00:30]} 56. Kd5 {[%clk 0:00:02]}  Kf7 {[%clk 0:00:20]} 57. Ke5 {[%clk 0:00:02]}  Kg6 {[%clk 0:00:20]} 58. Ke6 {[%clk 0:00:02]}  h5 {[%clk 0:00:20]} 59. g5 {[%clk 0:00:02]}  Kg7 {[%clk 0:00:21]} 60. Kf5 {[%clk 0:00:02]}  Kh7 {[%clk 0:00:20]} 61. Kf6 {[%clk 0:00:02]} 1-0


[Site "https://www.chess.com"]

[Event "Titled Tuesday Blitz November 2 2021"]
[White "Laxman, R.R."]
[Black "Tsydypov, Zhamsaran"]
[WhiteFideId "5005361"]
[BlackFideId "4108566"]
[WhiteElo "2476"]
[BlackElo "2649"]
[Result "1-0"]
[Round "02"]
[TimeControl "180+1"]
[Date "2021.11.02"]
[WhiteClock "0:01:46"]
[BlackClock "0:01:29"]

1. d4 {[%clk 0:03:00]}  Nf6 {[%clk 0:02:49]} 2. Nf3 {[%clk 0:03:00]}  c5 {[%clk 0:02:47]} 3. d5 {[%clk 0:03:00]}  b5 {[%clk 0:02:46]} 4. c4 {[%clk 0:03:00]}  bxc4 {[%clk 0:02:45]} 5. Nc3 {[%clk 0:03:00]}  d6 {[%clk 0:02:45]} 6. e4 {[%clk 0:03:00]}  g6 {[%clk 0:02:45]} 7. Bxc4 {[%clk 0:03:00]}  Bg4 {[%clk 0:02:45]} 8. O-O {[%clk 0:03:00]}  Bg7 {[%clk 0:02:45]} 9. Qa4+ {[%clk 0:03:00]}  Nbd7 {[%clk 0:02:44]} 10. e5 {[%clk 0:03:00]}  dxe5 {[%clk 0:02:40]} 11. Nxe5 {[%clk 0:03:01]}  O-O {[%clk 0:02:40]} 12. Nc6 {[%clk 0:02:58]}  Nb6 {[%clk 0:02:31]} 13. Nxd8 {[%clk 0:02:39]}  Nxa4 {[%clk 0:02:30]} 14. Nc6 {[%clk 0:02:40]}  Nxc3 {[%clk 0:02:30]} 15. Nxe7+ {[%clk 0:02:40]}  Kh8 {[%clk 0:02:30]} 16. bxc3 {[%clk 0:02:40]}  Rfe8 {[%clk 0:02:20]} 17. d6 {[%clk 0:02:40]}  Ne4 {[%clk 0:02:18]} 18. Bxf7 {[%clk 0:02:29]}  Nxd6 {[%clk 0:02:05]} 19. Bxe8 {[%clk 0:02:29]}  Bxc3 {[%clk 0:02:02]} 20. Bc6 {[%clk 0:02:26]}  Rf8 {[%clk 0:01:55]} 21. Bh6 {[%clk 0:02:25]}  Rf7 {[%clk 0:01:54]} 22. Rac1 {[%clk 0:02:14]}  Bd4 {[%clk 0:01:53]} 23. Nd5 {[%clk 0:02:11]}  Be2 {[%clk 0:01:53]} 24. Be3 {[%clk 0:02:07]}  Bxf1 {[%clk 0:01:53]} 25. Bxd4+ {[%clk 0:02:06]}  cxd4 {[%clk 0:01:53]} 26. Kxf1 {[%clk 0:02:07]}  d3 {[%clk 0:01:40]} 27. Rd1 {[%clk 0:02:01]}  Ne4 {[%clk 0:01:41]} 28. f3 {[%clk 0:02:01]}  Nc5 {[%clk 0:01:41]} 29. Bb5 {[%clk 0:01:56]}  Rf5 {[%clk 0:01:39]} 30. Ne3 {[%clk 0:01:56]}  Re5 {[%clk 0:01:39]} 31. Kf2 {[%clk 0:01:56]}  Rh5 {[%clk 0:01:38]} 32. h3 {[%clk 0:01:52]}  Rh4 {[%clk 0:01:38]} 33. Bxd3 {[%clk 0:01:52]}  Rb4 {[%clk 0:01:38]} 34. Bc4 {[%clk 0:01:51]}  Rb2+ {[%clk 0:01:39]} 35. Kg3 {[%clk 0:01:51]}  a5 {[%clk 0:01:33]} 36. Rd5 {[%clk 0:01:47]}  Nb7 {[%clk 0:01:31]} 37. Rb5 {[%clk 0:01:46]}  Rxb5 {[%clk 0:01:31]} 38. Bxb5 {[%clk 0:01:47]}  Nd6 {[%clk 0:01:31]} 39. a4 {[%clk 0:01:46]}  Kg7 {[%clk 0:01:31]} 40. Nc4 {[%clk 0:01:46]}  Nf5+ {[%clk 0:01:31]} 41. Kf2 {[%clk 0:01:45]}  Nd4 {[%clk 0:01:29]} 42. Nxa5 {[%clk 0:01:46]}  Kf6 {[%clk 0:01:29]} 43. Nc6 {[%clk 0:01:47]}  Nb3 {[%clk 0:01:29]} 44. a5 {[%clk 0:01:46]} 1-0


[Site "https://www.chess.com"]

[Event "Titled Tuesday Blitz November 2 2021"]
[White "Le, Tuan Minh"]
[Black "Przybylski, Wojciech"]
[WhiteFideId "12401153"]
[BlackFideId "1117599"]
[WhiteElo "2450"]
[BlackElo "2247"]
[Result "1-0"]
[Round "02"]
[TimeControl "180+1"]
[Date "2021.11.02"]
[WhiteClock "0:00:08"]
[BlackClock "0:00:08"]

1. d4 {[%clk 0:03:00]}  Nf6 {[%clk 0:02:59]} 2. Nf3 {[%clk 0:03:01]}  e6 {[%clk 0:02:57]} 3. Bf4 {[%clk 0:03:01]}  d5 {[%clk 0:02:56]} 4. e3 {[%clk 0:03:01]}  Be7 {[%clk 0:02:54]} 5. Ne5 {[%clk 0:02:56]}  O-O {[%clk 0:02:54]} 6. Nd2 {[%clk 0:02:56]}  c5 {[%clk 0:02:51]} 7. c3 {[%clk 0:02:56]}  Nc6 {[%clk 0:02:48]} 8. Bd3 {[%clk 0:02:56]}  cxd4 {[%clk 0:02:38]} 9. exd4 {[%clk 0:02:55]}  g6 {[%clk 0:02:28]} 10. Ndf3 {[%clk 0:02:35]}  Nxe5 {[%clk 0:02:24]} 11. Nxe5 {[%clk 0:02:33]}  Ne4 {[%clk 0:02:15]} 12. Qe2 {[%clk 0:02:32]}  f5 {[%clk 0:02:09]} 13. f3 {[%clk 0:02:29]}  Nf6 {[%clk 0:01:47]} 14. O-O {[%clk 0:02:28]}  Nh5 {[%clk 0:01:40]} 15. Bh6 {[%clk 0:02:24]}  Ng7 {[%clk 0:01:33]} 16. Qd2 {[%clk 0:02:14]}  Bd7 {[%clk 0:01:27]} 17. Rae1 {[%clk 0:02:13]}  Be8 {[%clk 0:01:25]} 18. Re2 {[%clk 0:02:13]}  Bd7 {[%clk 0:00:55]} 19. Rfe1 {[%clk 0:02:12]}  Bc8 {[%clk 0:00:55]} 20. Bc2 {[%clk 0:02:02]}  a5 {[%clk 0:00:53]} 21. a4 {[%clk 0:02:01]}  Ra6 {[%clk 0:00:52]} 22. Nd3 {[%clk 0:01:55]}  Rb6 {[%clk 0:00:50]} 23. Qc1 {[%clk 0:01:40]}  Bf6 {[%clk 0:00:46]} 24. Nc5 {[%clk 0:01:35]}  Re8 {[%clk 0:00:46]} 25. Bf4 {[%clk 0:01:35]}  Rc6 {[%clk 0:00:36]} 26. Bd3 {[%clk 0:01:28]}  g5 {[%clk 0:00:29]} 27. Be5 {[%clk 0:01:26]}  Be7 {[%clk 0:00:27]} 28. Bb5 {[%clk 0:01:22]}  Rxc5 {[%clk 0:00:24]} 29. dxc5 {[%clk 0:01:22]}  Bxc5+ {[%clk 0:00:24]} 30. Bd4 {[%clk 0:00:43]}  Bxd4+ {[%clk 0:00:24]} 31. cxd4 {[%clk 0:00:44]}  Rf8 {[%clk 0:00:24]} 32. Rc2 {[%clk 0:00:44]}  f4 {[%clk 0:00:23]} 33. Bd3 {[%clk 0:00:40]}  Bd7 {[%clk 0:00:22]} 34. Qd2 {[%clk 0:00:25]}  Qf6 {[%clk 0:00:22]} 35. Re5 {[%clk 0:00:24]}  Bxa4 {[%clk 0:00:21]} 36. Rc7 {[%clk 0:00:23]}  Bc6 {[%clk 0:00:21]} 37. Qxa5 {[%clk 0:00:23]}  h5 {[%clk 0:00:20]} 38. Qe1 {[%clk 0:00:22]}  g4 {[%clk 0:00:20]} 39. b4 {[%clk 0:00:22]}  Rf7 {[%clk 0:00:19]} 40. Rc8+ {[%clk 0:00:21]}  Rf8 {[%clk 0:00:19]} 41. Rxf8+ {[%clk 0:00:21]}  Kxf8 {[%clk 0:00:20]} 42. b5 {[%clk 0:00:22]}  Bd7 {[%clk 0:00:19]} 43. Qd2 {[%clk 0:00:18]}  Be8 {[%clk 0:00:17]} 44. Qc1 {[%clk 0:00:14]}  Qd8 {[%clk 0:00:15]} 45. Qxf4+ {[%clk 0:00:14]}  Kg8 {[%clk 0:00:15]} 46. Rg5 {[%clk 0:00:13]}  Qe7 {[%clk 0:00:14]} 47. Qe5 {[%clk 0:00:12]}  Bd7 {[%clk 0:00:13]} 48. fxg4 {[%clk 0:00:13]}  hxg4 {[%clk 0:00:12]} 49. Rxg4 {[%clk 0:00:14]}  Kf8 {[%clk 0:00:12]} 50. Qb8+ {[%clk 0:00:12]}  Be8 {[%clk 0:00:12]} 51. Bg6 {[%clk 0:00:11]}  Qb4 {[%clk 0:00:09]} 52. Rf4+ {[%clk 0:00:09]}  Ke7 {[%clk 0:00:08]} 53. Qc7+ {[%clk 0:00:06]}  Bd7 {[%clk 0:00:08]} 54. Rf7+ {[%clk 0:00:06]}  Ke8 {[%clk 0:00:08]} 55. Rxd7+ {[%clk 0:00:06]}  Kf8 {[%clk 0:00:08]} 56. Qd8+ {[%clk 0:00:07]}  Ne8 {[%clk 0:00:08]} 57. Qxe8# {[%clk 0:00:08]} 1-0


[Site "https://www.chess.com"]

[Event "Titled Tuesday Blitz November 2 2021"]
[White "Martinez Alcantara, Jose Eduardo"]
[Black "Nozdrachev, Leonid"]
[WhiteFideId "3805662"]
[BlackFideId "24113433"]
[WhiteElo "2690"]
[BlackElo "2124"]
[Result "1-0"]
[Round "02"]
[TimeControl "180+1"]
[Date "2021.11.02"]
[WhiteClock "0:00:50"]
[BlackClock "0:00:02"]

1. e4 {[%clk 0:03:00]}  c6 {[%clk 0:02:30]} 2. d4 {[%clk 0:02:59]}  d5 {[%clk 0:02:29]} 3. e5 {[%clk 0:03:00]}  Bf5 {[%clk 0:02:29]} 4. h4 {[%clk 0:03:01]}  h5 {[%clk 0:02:28]} 5. Bd3 {[%clk 0:03:01]}  Bxd3 {[%clk 0:02:26]} 6. Qxd3 {[%clk 0:03:02]}  Qa5+ {[%clk 0:02:23]} 7. Bd2 {[%clk 0:03:01]}  Qa6 {[%clk 0:02:24]} 8. e6 {[%clk 0:03:01]}  Qxd3 {[%clk 0:02:21]} 9. exf7+ {[%clk 0:03:02]}  Kxf7 {[%clk 0:02:21]} 10. cxd3 {[%clk 0:03:03]}  Nh6 {[%clk 0:02:05]} 11. Nf3 {[%clk 0:03:04]}  Nf5 {[%clk 0:02:02]} 12. Nc3 {[%clk 0:03:02]}  Nd7 {[%clk 0:02:01]} 13. Ne2 {[%clk 0:03:02]}  Re8 {[%clk 0:01:51]} 14. Bc3 {[%clk 0:02:48]}  e6 {[%clk 0:01:48]} 15. Ng5+ {[%clk 0:02:45]}  Kg8 {[%clk 0:01:43]} 16. O-O-O {[%clk 0:02:42]}  Be7 {[%clk 0:01:37]} 17. g3 {[%clk 0:02:42]}  Bf6 {[%clk 0:01:34]} 18. Rde1 {[%clk 0:02:38]}  Rh6 {[%clk 0:01:18]} 19. Nf3 {[%clk 0:02:36]}  Kf7 {[%clk 0:01:10]} 20. Nf4 {[%clk 0:02:34]}  Rhh8 {[%clk 0:00:55]} 21. Re2 {[%clk 0:02:24]}  Nf8 {[%clk 0:00:40]} 22. Rhe1 {[%clk 0:02:23]}  g6 {[%clk 0:00:36]} 23. Kb1 {[%clk 0:02:21]}  b6 {[%clk 0:00:21]} 24. a4 {[%clk 0:02:20]}  a6 {[%clk 0:00:20]} 25. Bb4 {[%clk 0:01:46]}  Nxd4 {[%clk 0:00:15]} 26. Nxd4 {[%clk 0:01:46]}  Bxd4 {[%clk 0:00:15]} 27. Bxf8 {[%clk 0:01:47]}  e5 {[%clk 0:00:08]} 28. Nxd5 {[%clk 0:01:25]}  cxd5 {[%clk 0:00:08]} 29. Bd6 {[%clk 0:01:26]}  e4 {[%clk 0:00:05]} 30. dxe4 {[%clk 0:01:26]}  Rxe4 {[%clk 0:00:05]} 31. Rxe4 {[%clk 0:01:27]}  dxe4 {[%clk 0:00:06]} 32. Rxe4 {[%clk 0:01:27]}  Bc5 {[%clk 0:00:03]} 33. Bxc5 {[%clk 0:01:24]}  bxc5 {[%clk 0:00:04]} 34. Kc2 {[%clk 0:01:24]}  Rb8 {[%clk 0:00:03]} 35. Rc4 {[%clk 0:01:23]}  Re8 {[%clk 0:00:02]} 36. Rxc5 {[%clk 0:01:03]}  Re2+ {[%clk 0:00:02]} 37. Kc3 {[%clk 0:01:04]}  Rxf2 {[%clk 0:00:03]} 38. Rg5 {[%clk 0:01:02]}  Rf1 {[%clk 0:00:02]} 39. b3 {[%clk 0:01:02]}  Kf6 {[%clk 0:00:02]} 40. Kb4 {[%clk 0:01:03]}  Rb1 {[%clk 0:00:02]} 41. Rc5 {[%clk 0:01:01]}  Rg1 {[%clk 0:00:02]} 42. Rc6+ {[%clk 0:01:00]}  Kf5 {[%clk 0:00:01]} 43. Rxa6 {[%clk 0:01:01]}  Rxg3 {[%clk 0:00:01]} 44. a5 {[%clk 0:00:59]}  Rg4+ {[%clk 0:00:01]} 45. Ka3 {[%clk 0:00:59]}  Rxh4 {[%clk 0:00:02]} 46. Rc6 {[%clk 0:00:58]}  Rh1 {[%clk 0:00:02]} 47. a6 {[%clk 0:00:58]}  Ra1+ {[%clk 0:00:02]} 48. Kb2 {[%clk 0:00:58]}  Ra5 {[%clk 0:00:02]} 49. b4 {[%clk 0:00:59]}  Rb5 {[%clk 0:00:02]} 50. a7 {[%clk 0:00:50]}  Rxb4+ {[%clk 0:00:03]} 51. Ka3 {[%clk 0:00:51]}  Rb1 {[%clk 0:00:03]} 52. Ka2 {[%clk 0:00:52]}  Rb8 {[%clk 0:00:01]} 53. axb8=Q {[%clk 0:00:51]}  h4 {[%clk 0:00:02]} 54. Qb1+ {[%clk 0:00:50]} 1-0


[Site "https://www.chess.com"]

[Event "Titled Tuesday Blitz November 2 2021"]
[White "Paravyan, David"]
[Black "Kalashian, David"]
[WhiteFideId "4194985"]
[BlackFideId "13302418"]
[WhiteElo "2639"]
[BlackElo "2490"]
[Result "0-1"]
[Round "02"]
[TimeControl "180+1"]
[Date "2021.11.02"]
[WhiteClock "0:00:03"]
[BlackClock "0:00:22"]

1. e4 {[%clk 0:03:00]}  c6 {[%clk 0:02:58]} 2. d4 {[%clk 0:03:00]}  g6 {[%clk 0:02:59]} 3. Nc3 {[%clk 0:03:00]}  Bg7 {[%clk 0:02:55]} 4. Nf3 {[%clk 0:03:00]}  d6 {[%clk 0:02:54]} 5. h3 {[%clk 0:03:00]}  Nf6 {[%clk 0:02:54]} 6. Bf4 {[%clk 0:03:00]}  O-O {[%clk 0:02:51]} 7. Qd2 {[%clk 0:03:01]}  b5 {[%clk 0:02:49]} 8. Bd3 {[%clk 0:03:01]}  Nbd7 {[%clk 0:02:40]} 9. e5 {[%clk 0:03:01]}  b4 {[%clk 0:02:35]} 10. Ne2 {[%clk 0:02:59]}  Nd5 {[%clk 0:02:28]} 11. Bh6 {[%clk 0:02:59]}  dxe5 {[%clk 0:02:20]} 12. Bxg7 {[%clk 0:02:54]}  Kxg7 {[%clk 0:02:16]} 13. dxe5 {[%clk 0:02:54]}  Nc5 {[%clk 0:02:08]} 14. Bc4 {[%clk 0:02:51]}  a5 {[%clk 0:02:01]} 15. Rd1 {[%clk 0:02:50]}  Ba6 {[%clk 0:01:50]} 16. Bxa6 {[%clk 0:02:50]}  Rxa6 {[%clk 0:01:50]} 17. O-O {[%clk 0:02:49]}  Ne6 {[%clk 0:01:41]} 18. Ned4 {[%clk 0:02:49]}  Ndc7 {[%clk 0:01:24]} 19. Qe2 {[%clk 0:02:47]}  Qc8 {[%clk 0:01:19]} 20. h4 {[%clk 0:02:44]}  h5 {[%clk 0:01:15]} 21. Rd2 {[%clk 0:02:34]}  c5 {[%clk 0:01:14]} 22. Nxe6+ {[%clk 0:02:34]}  Nxe6 {[%clk 0:01:10]} 23. Qc4 {[%clk 0:02:33]}  Rd8 {[%clk 0:01:01]} 24. Rxd8 {[%clk 0:02:31]}  Nxd8 {[%clk 0:01:02]} 25. Ng5 {[%clk 0:02:31]}  Ne6 {[%clk 0:01:00]} 26. Nf3 {[%clk 0:02:09]}  Ra7 {[%clk 0:00:58]} 27. g3 {[%clk 0:02:07]}  Rd7 {[%clk 0:00:58]} 28. Qe4 {[%clk 0:01:58]}  c4 {[%clk 0:00:54]} 29. Re1 {[%clk 0:01:56]}  Qc5 {[%clk 0:00:53]} 30. Kg2 {[%clk 0:01:55]}  c3 {[%clk 0:00:53]} 31. b3 {[%clk 0:01:56]}  Rd5 {[%clk 0:00:52]} 32. Re3 {[%clk 0:01:54]}  Rd1 {[%clk 0:00:52]} 33. Ng5 {[%clk 0:01:51]}  Nxg5 {[%clk 0:00:51]} 34. hxg5 {[%clk 0:01:52]}  e6 {[%clk 0:00:50]} 35. Rf3 {[%clk 0:01:47]}  Rd5 {[%clk 0:00:46]} 36. Qf4 {[%clk 0:01:46]}  Qc7 {[%clk 0:00:46]} 37. Re3 {[%clk 0:01:45]}  Rd2 {[%clk 0:00:44]} 38. Qf6+ {[%clk 0:01:43]}  Kg8 {[%clk 0:00:43]} 39. Qf4 {[%clk 0:00:46]}  Rxc2 {[%clk 0:00:39]} 40. Rd3 {[%clk 0:00:46]}  Re2 {[%clk 0:00:35]} 41. Rd4 {[%clk 0:00:21]}  Qxe5 {[%clk 0:00:26]} 42. Rd8+ {[%clk 0:00:21]}  Kg7 {[%clk 0:00:26]} 43. Qxe5+ {[%clk 0:00:03]}  Rxe5 {[%clk 0:00:25]} 44. Rc8 {[%clk 0:00:04]}  Re2 {[%clk 0:00:23]} 45. Rc7 {[%clk 0:00:01]}  Rxa2 {[%clk 0:00:23]} 46. Kf3 {[%clk 0:00:02]}  Rb2 {[%clk 0:00:23]} 47. Ke4 {[%clk 0:00:03]}  Rxb3 {[%clk 0:00:23]} 48. f4 {[%clk 0:00:03]}  a4 {[%clk 0:00:22]} 0-1


[Site "https://www.chess.com"]

[Event "Titled Tuesday Blitz November 2 2021"]
[White "Perera Alfonso, Rene Humberto"]
[Black "Rustemov, Alexander"]
[WhiteFideId "3514722"]
[BlackFideId "4119002"]
[WhiteElo "2313"]
[BlackElo "2799"]
[Result "1-0"]
[Round "02"]
[TimeControl "180+1"]
[Date "2021.11.02"]
[WhiteClock "0:00:08"]
[BlackClock "0:00:03"]

1. e4 {[%clk 0:02:59]}  e6 {[%clk 0:03:00]} 2. d4 {[%clk 0:02:59]}  d5 {[%clk 0:03:01]} 3. Nc3 {[%clk 0:02:59]}  dxe4 {[%clk 0:03:01]} 4. Nxe4 {[%clk 0:03:00]}  Bd7 {[%clk 0:03:02]} 5. Nf3 {[%clk 0:03:00]}  Bc6 {[%clk 0:03:02]} 6. Bd3 {[%clk 0:03:01]}  Nd7 {[%clk 0:03:03]} 7. Qe2 {[%clk 0:03:01]}  Ngf6 {[%clk 0:03:04]} 8. O-O {[%clk 0:03:00]}  Nxe4 {[%clk 0:03:03]} 9. Bxe4 {[%clk 0:03:01]}  Bxe4 {[%clk 0:03:04]} 10. Qxe4 {[%clk 0:03:02]}  c6 {[%clk 0:03:05]} 11. c4 {[%clk 0:03:00]}  Be7 {[%clk 0:03:02]} 12. Bd2 {[%clk 0:02:59]}  O-O {[%clk 0:03:01]} 13. Bc3 {[%clk 0:02:59]}  Re8 {[%clk 0:02:59]} 14. Rfe1 {[%clk 0:02:58]}  Qc7 {[%clk 0:02:54]} 15. Rad1 {[%clk 0:02:57]}  Rad8 {[%clk 0:02:52]} 16. h3 {[%clk 0:02:51]}  h6 {[%clk 0:02:45]} 17. d5 {[%clk 0:02:42]}  Nf6 {[%clk 0:02:33]} 18. Bxf6 {[%clk 0:02:42]}  Bxf6 {[%clk 0:02:31]} 19. dxc6 {[%clk 0:02:38]}  Qxc6 {[%clk 0:02:23]} 20. Qxc6 {[%clk 0:02:38]}  bxc6 {[%clk 0:02:23]} 21. b3 {[%clk 0:02:38]}  Bc3 {[%clk 0:02:18]} 22. Rxd8 {[%clk 0:02:36]}  Rxd8 {[%clk 0:02:17]} 23. Re2 {[%clk 0:02:37]}  Rd1+ {[%clk 0:02:14]} 24. Kh2 {[%clk 0:02:36]}  Kf8 {[%clk 0:01:47]} 25. Ne5 {[%clk 0:02:33]}  Bxe5+ {[%clk 0:01:27]} 26. Rxe5 {[%clk 0:02:34]}  Rd2 {[%clk 0:01:25]} 27. Ra5 {[%clk 0:02:33]}  Rxf2 {[%clk 0:01:18]} 28. Rxa7 {[%clk 0:02:33]}  Rb2 {[%clk 0:00:58]} 29. Rc7 {[%clk 0:02:32]}  Rxa2 {[%clk 0:00:54]} 30. Rxc6 {[%clk 0:02:32]}  Rb2 {[%clk 0:00:53]} 31. Rb6 {[%clk 0:02:32]}  Ke7 {[%clk 0:00:50]} 32. c5 {[%clk 0:02:32]}  e5 {[%clk 0:00:49]} 33. b4 {[%clk 0:02:30]}  e4 {[%clk 0:00:47]} 34. Rb7+ {[%clk 0:02:26]}  Ke6 {[%clk 0:00:46]} 35. c6 {[%clk 0:02:27]}  e3 {[%clk 0:00:36]} 36. Kg3 {[%clk 0:02:22]}  f5 {[%clk 0:00:32]} 37. b5 {[%clk 0:02:16]}  g5 {[%clk 0:00:30]} 38. Rb8 {[%clk 0:02:09]}  f4+ {[%clk 0:00:28]} 39. Kf3 {[%clk 0:02:05]}  Kd6 {[%clk 0:00:28]} 40. Rh8 {[%clk 0:00:36]}  Rf2+ {[%clk 0:00:26]} 41. Kg4 {[%clk 0:00:36]}  Rxg2+ {[%clk 0:00:25]} 42. Kf5 {[%clk 0:00:36]}  e2 {[%clk 0:00:23]} 43. Rxh6+ {[%clk 0:00:36]}  Kc7 {[%clk 0:00:11]} 44. Rh7+ {[%clk 0:00:28]}  Kd6 {[%clk 0:00:11]} 45. Rd7+ {[%clk 0:00:25]}  Kc5 {[%clk 0:00:11]} 46. c7 {[%clk 0:00:25]}  e1=Q {[%clk 0:00:08]} 47. c8=Q+ {[%clk 0:00:24]}  Kb4 {[%clk 0:00:09]} 48. Rd4+ {[%clk 0:00:18]}  Kb3 {[%clk 0:00:09]} 49. Qc4+ {[%clk 0:00:13]}  Kb2 {[%clk 0:00:09]} 50. Qb4+ {[%clk 0:00:10]}  Qxb4 {[%clk 0:00:08]} 51. Rxb4+ {[%clk 0:00:10]}  Kc3 {[%clk 0:00:09]} 52. b6 {[%clk 0:00:11]}  f3 {[%clk 0:00:09]} 53. b7 {[%clk 0:00:08]}  f2 {[%clk 0:00:09]} 54. Rb1 {[%clk 0:00:08]}  Rg1 {[%clk 0:00:04]} 55. b8=Q {[%clk 0:00:07]}  f1=Q+ {[%clk 0:00:02]} 56. Rxf1 {[%clk 0:00:07]}  Rxf1+ {[%clk 0:00:03]} 57. Kxg5 {[%clk 0:00:08]}  Rd1 {[%clk 0:00:03]} 58. Qc7+ {[%clk 0:00:07]}  Kd2 {[%clk 0:00:03]} 59. h4 {[%clk 0:00:08]}  Rg1+ {[%clk 0:00:02]} 60. Kh5 {[%clk 0:00:08]}  Ke2 {[%clk 0:00:02]} 61. Qe5+ {[%clk 0:00:07]}  Kf2 {[%clk 0:00:02]} 62. Qd4+ {[%clk 0:00:07]}  Kg2 {[%clk 0:00:02]} 63. Qxg1+ {[%clk 0:00:08]}  Kxg1 {[%clk 0:00:03]} 64. Kg6 {[%clk 0:00:08]} 1-0


[Site "https://www.chess.com"]

[Event "Titled Tuesday Blitz November 2 2021"]
[White "Petesch, Gabriel"]
[Black "Nesterov, Arseniy"]
[WhiteFideId "2032465"]
[BlackFideId "24198455"]
[WhiteElo "2374"]
[BlackElo "2494"]
[Result "1-0"]
[Round "02"]
[TimeControl "180+1"]
[Date "2021.11.02"]
[WhiteClock "0:00:02"]
[BlackClock "0:00:04"]

1. Nf3 {[%clk 0:02:40]}  d5 {[%clk 0:03:00]} 2. g3 {[%clk 0:02:40]}  Nf6 {[%clk 0:03:00]} 3. Bg2 {[%clk 0:02:39]}  Bf5 {[%clk 0:03:00]} 4. c4 {[%clk 0:02:37]}  c6 {[%clk 0:03:00]} 5. O-O {[%clk 0:02:31]}  e6 {[%clk 0:02:59]} 6. b3 {[%clk 0:02:25]}  h6 {[%clk 0:02:55]} 7. Bb2 {[%clk 0:02:24]}  Be7 {[%clk 0:02:55]} 8. d3 {[%clk 0:02:11]}  O-O {[%clk 0:02:55]} 9. Nbd2 {[%clk 0:02:11]}  Nbd7 {[%clk 0:02:53]} 10. Qc2 {[%clk 0:02:11]}  a5 {[%clk 0:02:48]} 11. a3 {[%clk 0:02:10]}  Bh7 {[%clk 0:02:44]} 12. Bc3 {[%clk 0:02:10]}  Ne8 {[%clk 0:02:41]} 13. Qb2 {[%clk 0:02:10]}  Bf6 {[%clk 0:02:42]} 14. Ne5 {[%clk 0:02:01]}  Nxe5 {[%clk 0:02:35]} 15. Bxe5 {[%clk 0:02:02]}  Bxe5 {[%clk 0:02:32]} 16. Qxe5 {[%clk 0:02:03]}  Nf6 {[%clk 0:02:32]} 17. Rab1 {[%clk 0:01:53]}  Qe7 {[%clk 0:02:30]} 18. Qb2 {[%clk 0:01:48]}  e5 {[%clk 0:02:21]} 19. cxd5 {[%clk 0:01:44]}  cxd5 {[%clk 0:02:21]} 20. Rbc1 {[%clk 0:01:45]}  Rac8 {[%clk 0:02:08]} 21. b4 {[%clk 0:01:18]}  a4 {[%clk 0:01:53]} 22. Rc2 {[%clk 0:01:00]}  e4 {[%clk 0:01:44]} 23. dxe4 {[%clk 0:00:51]}  dxe4 {[%clk 0:01:40]} 24. e3 {[%clk 0:00:44]}  Bf5 {[%clk 0:01:29]} 25. Rfc1 {[%clk 0:00:41]}  Rcd8 {[%clk 0:01:25]} 26. Nc4 {[%clk 0:00:36]}  Rd3 {[%clk 0:01:01]} 27. Bf1 {[%clk 0:00:24]}  Rfd8 {[%clk 0:00:57]} 28. Na5 {[%clk 0:00:15]}  Ng4 {[%clk 0:00:45]} 29. Rc7 {[%clk 0:00:14]}  R3d7 {[%clk 0:00:37]} 30. Rxd7 {[%clk 0:00:12]}  Rxd7 {[%clk 0:00:38]} 31. Qc2 {[%clk 0:00:09]}  Kh7 {[%clk 0:00:28]} 32. Qxa4 {[%clk 0:00:08]}  Rd2 {[%clk 0:00:29]} 33. Rc2 {[%clk 0:00:08]}  Qd8 {[%clk 0:00:25]} 34. Nxb7 {[%clk 0:00:07]}  Qd5 {[%clk 0:00:22]} 35. Qc6 {[%clk 0:00:04]}  Qxc6 {[%clk 0:00:16]} 36. Rxc6 {[%clk 0:00:05]}  Nxf2 {[%clk 0:00:16]} 37. Nd6 {[%clk 0:00:05]}  Bg6 {[%clk 0:00:06]} 38. h3 {[%clk 0:00:04]}  Nd1 {[%clk 0:00:06]} 39. Nc4 {[%clk 0:00:02]}  Rc2 {[%clk 0:00:06]} 40. b5 {[%clk 0:00:02]}  Bf5 {[%clk 0:00:04]} 41. g4 {[%clk 0:00:02]}  Be6 {[%clk 0:00:04]} 42. Rc5 {[%clk 0:00:02]}  Nxe3 {[%clk 0:00:04]} 43. b6 {[%clk 0:00:02]}  Nxf1 {[%clk 0:00:04]} 44. b7 {[%clk 0:00:02]} 1-0


[Site "https://www.chess.com"]